lending/lending_fUSD_20240807
["ID","MTS","AMOUNT","RATE_DAILY","PERIOD"]
[334337253,1722993039674,-1747.41,0.00010958,2]
[334337254,1722993039684,-605.62,0.00010958,2]
[334337255,1722993039693,-500.0,0.00010958,2]
[334337256,1722993039703,-500.0,0.00010958,2]
[334337257,1722993039713,-1062.15,0.00010958,2]
[334337258,1722993039723,-500.0,0.00010958,2]
[334337259,1722993039732,-500.0,0.00010958,2]
[334337260,1722993039742,-1193.26,0.00010958,2]
[334337261,1722993039756,-500.0,0.00010958,2]
[334337262,1722993039766,-500.0,0.00010958,2]
[334337263,1722993039777,-2084.99,0.00010958,2]
[334337264,1722993039786,-571.01,0.00010958,2]
[334337265,1722993039796,-158.16643563,0.00010958,2]
[334337266,1722993039903,-717.96206054,0.00010958,2]
[334337270,1722993040728,-383.5819375,0.00010958,2]
[334337271,1722993040740,-982.58956633,0.00010958,2]
[334337272,1722993040749,-500.0,0.00010958,2]
[334337273,1722993040765,-500.0,0.00010958,2]
[334337274,1722993040774,-151.0,0.00010958,2]
[334337275,1722993040785,-500.0,0.00010958,2]
[334337276,1722993040795,-266.96807676,0.00010958,2]
[334337277,1722993040805,-194.75714669,0.00010958,2]
[334337278,1722993040815,-500.0,0.00010958,2]
[334337279,1722993040824,-1012.75764238,0.00010958,2]
[334337280,1722993040837,-143.42235762,0.00010958,2]
[334337281,1722993040847,-434.92139794,0.00010958,2]
[334337282,1722993040859,-65.07860206,0.00010958,2]
[334337283,1722993040868,-2045.9,0.00010958,2]
[334337284,1722993040878,-500.0,0.00010958,2]
[334337285,1722993040887,-1462.27,0.00010958,2]
[334337286,1722993040897,-500.0,0.00010958,2]
[334337288,1722993040907,-151.0,0.00010958,2]
[334337289,1722993040916,-183.219884,0.00010958,2]
[334337291,1722993040925,-500.0,0.00010958,2]
[334337293,1722993040935,-847.87,0.00010958,2]
[334337295,1722993040944,-2628.33,0.00010958,2]
[334337296,1722993040954,-514.03,0.00010958,2]
[334337298,1722993040964,-500.0,0.00010958,2]
[334337300,1722993040974,-743.81,0.00010958,2]
[334337302,1722993040983,-500.0,0.00010958,2]
[334337303,1722993040993,-6245.2,0.00010958,2]
[334337305,1722993041008,-1881.84,0.00010958,2]
[334337307,1722993041018,-500.0,0.00010958,2]
[334337309,1722993041028,-1208.47,0.00010958,2]
[334337311,1722993041038,-715.52,0.00010958,2]
[334337313,1722993041047,-500.0,0.00010958,2]
[334337315,1722993041056,-3204.11,0.00010958,2]
[334337317,1722993041066,-1369.32,0.00010958,2]
[334337319,1722993041075,-500.0,0.00010958,2]
[334337321,1722993041084,-500.0,0.00010958,2]
[334337323,1722993041094,-500.0,0.00010958,2]
[334337325,1722993041103,-500.0,0.00010958,2]
[334337327,1722993041113,-151.0,0.00010958,2]
[334337329,1722993041123,-500.0,0.00010958,2]
[334337330,1722993041133,-3355.57,0.00010958,2]
[334337332,1722993041143,-1257.81,0.00010958,2]
[334337334,1722993041153,-1448.28,0.00010958,2]
[334337336,1722993041163,-500.0,0.00010958,2]
[334337338,1722993041173,-500.0,0.00010958,2]
[334337340,1722993041183,-802.0,0.00010958,2]
[334337342,1722993041193,-943.68,0.00010958,2]
[334337344,1722993041203,-500.0,0.00010958,2]
[334337346,1722993041212,-1128.45,0.00010958,2]
[334337348,1722993041222,-500.0,0.00010958,2]
[334337350,1722993041233,-500.0,0.00010958,2]
[334337352,1722993041243,-500.0,0.00010958,2]
[334337354,1722993041257,-509.68088981,0.00010958,2]
[334337356,1722993041267,-500.0,0.00010958,2]
[334337358,1722993041277,-1499.3,0.00010958,2]
[334337360,1722993041286,-500.0,0.00010958,2]
[334337362,1722993041296,-500.0,0.00010958,2]
[334337364,1722993041306,-500.0,0.00010958,2]
[334337366,1722993041315,-500.0,0.00010958,2]
[334337368,1722993041324,-963.8,0.00010958,2]
[334337370,1722993041333,-1609.73,0.00010958,2]
[334337371,1722993041346,-500.0,0.00010958,2]
[334337373,1722993041357,-500.0,0.00010958,2]
[334337375,1722993041367,-214.61252696,0.00010958,2]
[334337377,1722993041376,-651.71,0.00010958,2]
[334337379,1722993041387,-2596.55,0.00010958,2]
[334337381,1722993041396,-501.27,0.00010958,2]
[334337383,1722993041406,-108.36460528,0.00010958,2]
[334337386,1722993041423,-648.79035334,0.00010958,2]
[334337388,1722993041434,-2883.47504138,0.00010958,2]
[334337390,1722993041445,-500.0,0.00010958,2]
[334337391,1722993041455,-500.0,0.00010958,2]
[334337392,1722993041465,-500.0,0.00010958,2]
[334337393,1722993041475,-500.0,0.00010958,2]
[334337394,1722993041485,-1211.78,0.00010958,2]
[334337395,1722993041495,-516.44,0.00010958,2]
[334337396,1722993041508,-1772.06,0.00010958,2]
[334337397,1722993041518,-500.0,0.00010958,2]
[334337398,1722993041528,-551.95,0.00010958,2]
[334337399,1722993041538,-500.0,0.00010958,2]
[334337400,1722993041548,-151.0,0.00010958,2]
[334337401,1722993041558,-1749.65,0.00010958,2]
[334337402,1722993041567,-500.0,0.00010958,2]
[334337403,1722993041577,-2939.22,0.00010958,2]
[334337404,1722993041587,-500.0,0.00010958,2]
[334337405,1722993041597,-500.0,0.00010958,2]
[334337406,1722993041607,-594.32,0.00010958,2]
[334337407,1722993041616,-591.6,0.00010958,2]
[334337408,1722993041626,-500.0,0.00010958,2]
[334337409,1722993041637,-549.86,0.00010958,2]
[334337410,1722993041647,-2871.93,0.00010958,2]
[334337411,1722993041657,-3106.75,0.00010958,2]
[334337413,1722993041666,-151.0,0.00010958,2]
[334337415,1722993041676,-1347.1,0.00010958,2]
[334337417,1722993041686,-500.0,0.00010958,2]
[334337419,1722993041696,-500.0,0.00010958,2]
[334337421,1722993041706,-500.0,0.00010958,2]
[334337423,1722993041716,-3375.41,0.00010958,2]
[334337425,1722993041726,-1472.8,0.00010958,2]
[334337427,1722993041735,-500.0,0.00010958,2]
[334337429,1722993041745,-151.0,0.00010958,2]
[334337431,1722993041756,-500.0,0.00010958,2]
[334337433,1722993041766,-2501.21,0.00010958,2]
[334337435,1722993041776,-568.98478412,0.00010958,2]
[334337436,1722993041785,-587.15,0.00010958,2]
[334337438,1722993041795,-1252.11,0.00010958,2]
[334337440,1722993041804,-756.79,0.00010958,2]
[334337442,1722993041813,-500.0,0.00010958,2]
[334337444,1722993041823,-500.0,0.00010958,2]
[334337446,1722993041833,-159.138066,0.00010958,2]
[334337448,1722993041843,-819.28,0.00010958,2]
[334337450,1722993041853,-500.0,0.00010958,2]
[334337452,1722993041864,-4561.76,0.00010958,2]
[334337454,1722993041873,-877.04,0.00010958,2]
[334337456,1722993041883,-500.0,0.00010958,2]
[334337458,1722993041893,-2631.3,0.00010958,2]
[334337460,1722993041902,-500.0,0.00010958,2]
[334337462,1722993041912,-1381.03,0.00010958,2]
[334337464,1722993041922,-500.0,0.00010958,2]
[334337466,1722993041932,-1032.82,0.00010958,2]
[334337468,1722993041942,-500.0,0.00010958,2]
[334337470,1722993041951,-500.0,0.00010958,2]
[334337472,1722993041961,-500.0,0.00010958,2]
[334337474,1722993041971,-500.0,0.00010958,2]
[334337475,1722993041982,-500.0,0.00010958,2]
[334337477,1722993041992,-151.0,0.00010958,2]
[334337479,1722993042001,-12546.6,0.00010958,2]
[334337481,1722993042014,-151.0,0.00010958,2]
[334337483,1722993042024,-1181.62,0.00010958,2]
[334337485,1722993042033,-151.0,0.00010958,2]
[334337487,1722993042043,-12961.17,0.00010958,2]
[334337489,1722993042053,-500.0,0.00010958,2]
[334337491,1722993042062,-500.0,0.00010958,2]
[334337493,1722993042071,-151.0,0.00010958,2]
[334337495,1722993042080,-151.0,0.00010958,2]
[334337497,1722993042090,-500.0,0.00010958,2]
[334337499,1722993042099,-500.0,0.00010958,2]
[334337501,1722993042108,-500.0,0.00010958,2]
[334337503,1722993042118,-151.0,0.00010958,2]
[334337505,1722993042128,-1028.355348,0.00010958,2]
[334337507,1722993042137,-1028.355348,0.00010958,2]
[334337508,1722993042147,-500.0,0.00010958,2]
[334337510,1722993042156,-1341.28,0.00010958,2]
[334337512,1722993042167,-151.0,0.00010958,2]
[334337515,1722993042178,-500.0,0.00010958,2]
[334337516,1722993042188,-550.3,0.00010958,2]
[334337518,1722993042199,-1028.355348,0.00010958,2]
[334337520,1722993042209,-1028.355348,0.00010958,2]
[334337522,1722993042219,-500.0,0.00010958,2]
[334337524,1722993042229,-500.0,0.00010958,2]
[334337526,1722993042239,-5244.44,0.00010958,2]
[334337528,1722993042249,-5244.44,0.00010958,2]
[334337530,1722993042262,-500.0,0.00010958,2]
[334337532,1722993042272,-37706.43,0.00010958,2]
[334337534,1722993042282,-5244.44,0.00010958,2]
[334337536,1722993042292,-1762.01,0.00010958,2]
[334337538,1722993042301,-1389.92,0.00010958,2]
[334337540,1722993042311,-500.0,0.00010958,2]
[334337542,1722993042321,-1234.07,0.00010958,2]
[334337544,1722993042331,-500.0,0.00010958,2]
[334337546,1722993042340,-500.0,0.00010958,2]
[334337548,1722993042350,-23932.78,0.00010958,2]
[334337550,1722993042364,-2607.72,0.00010958,2]
[334337552,1722993042374,-846.96,0.00010958,2]
[334337554,1722993042384,-500.0,0.00010958,2]
[334337556,1722993042394,-1004.38,0.00010958,2]
[334337558,1722993042404,-1231.4,0.00010958,2]
[334337560,1722993042414,-500.0,0.00010958,2]
[334337562,1722993042424,-500.0,0.00010958,2]
[334337564,1722993042435,-5569.82,0.00010958,2]
[334337566,1722993042444,-5569.82,0.00010958,2]
[334337568,1722993042455,-5569.82,0.00010958,2]
[334337570,1722993042465,-500.0,0.00010958,2]
[334337572,1722993042475,-500.0,0.00010958,2]
[334337574,1722993042485,-500.0,0.00010958,2]
[334337576,1722993042494,-1536.78,0.00010958,2]
[334337577,1722993042507,-500.0,0.00010958,2]
[334337579,1722993042517,-928.86,0.00010958,2]
[334337582,1722993042527,-2151.68,0.00010958,2]
[334337584,1722993042538,-4902.64,0.00010958,2]
[334337586,1722993042548,-4902.64,0.00010958,2]
[334337587,1722993042557,-4902.64,0.00010958,2]
[334337590,1722993042567,-500.0,0.00010958,2]
[334337592,1722993042577,-500.0,0.00010958,2]
[334337593,1722993042586,-500.0,0.00010958,2]
[334337595,1722993042596,-1217.5,0.00010958,2]
[334337597,1722993042606,-500.0,0.00010958,2]
[334337599,1722993042615,-8301.46,0.00010958,2]
[334337601,1722993042624,-1217.5,0.00010958,2]
[334337603,1722993042634,-1217.5,0.00010958,2]
[334337605,1722993042644,-500.0,0.00010958,2]
[334337607,1722993042654,-1943.41,0.00010958,2]
[334337609,1722993042664,-1609.91,0.00010958,2]
[334337611,1722993042674,-3330.65,0.00010958,2]
[334337613,1722993042684,-3330.65,0.00010958,2]
[334337615,1722993042693,-3330.65,0.00010958,2]
[334337617,1722993042702,-500.0,0.00010958,2]
[334337618,1722993042712,-500.0,0.00010958,2]
[334337620,1722993042722,-2637.44,0.00010958,2]
[334337624,1722993042733,-843.29,0.00010958,2]
[334337625,1722993042742,-2719.38,0.00010958,2]
[334337627,1722993042752,-500.0,0.00010958,2]
[334337629,1722993042764,-500.0,0.00010958,2]
[334337631,1722993042775,-500.0,0.00010958,2]
[334337633,1722993042785,-1888.82,0.00010958,2]
[334337636,1722993042795,-2348.0,0.00010958,2]
[334337639,1722993042806,-151.0,0.00010958,2]
[334337642,1722993042816,-500.0,0.00010958,2]
[334337645,1722993042826,-629.19,0.00010958,2]
[334337648,1722993042835,-151.0,0.00010958,2]
[334337651,1722993042845,-151.0,0.00010958,2]
[334337653,1722993042855,-3578.22,0.00010958,2]
[334337655,1722993042865,-151.0,0.00010958,2]
[334337657,1722993042876,-3578.22,0.00010958,2]
[334337659,1722993042886,-500.0,0.00010958,2]
[334337661,1722993042896,-3578.22,0.00010958,2]
[334337663,1722993042905,-1056.24,0.00010958,2]
[334337665,1722993042915,-500.0,0.00010958,2]
[334337667,1722993042924,-1747.96,0.00010958,2]
[334337669,1722993042934,-500.0,0.00010958,2]
[334337671,1722993042944,-1330.28,0.00010958,2]
[334337673,1722993042954,-996.74,0.00010958,2]
[334337676,1722993042964,-500.0,0.00010958,2]
[334337678,1722993042980,-1064.17,0.00010958,2]
[334337680,1722993042990,-1064.17,0.00010958,2]
[334337682,1722993043000,-1688.32,0.00010958,2]
[334337684,1722993043013,-1064.17,0.00010958,2]
[334337686,1722993043023,-500.0,0.00010958,2]
[334337688,1722993043032,-2839.17,0.00010958,2]
[334337690,1722993043042,-1012.38,0.00010958,2]
[334337692,1722993043051,-500.0,0.00010958,2]
[334337694,1722993043061,-740.20529531,0.00010958,2]
[334337815,1722993044831,-170.42026434,0.00010707,2]
[334337817,1722993044842,-333.93470469,0.00010958,2]
[334337819,1722993044852,-500.0,0.00010958,2]
[334337821,1722993044861,-485.86665357,0.00010958,2]
[334337823,1722993044873,-14.13334643,0.00010958,2]
[334337824,1722993044883,-500.0,0.00010958,2]
[334337825,1722993044892,-151.0,0.00010958,2]
[334337826,1722993044902,-500.0,0.00010958,2]
[334337827,1722993044911,-125.1736746,0.00010958,2]
[334337828,1722993044928,-25.8263254,0.00010958,2]
[334337829,1722993044938,-151.0,0.00010958,2]
[334337830,1722993044948,-151.0,0.00010958,2]
[334337831,1722993044957,-500.0,0.00010958,2]
[334337832,1722993044967,-500.0,0.00010958,2]
[334337833,1722993044986,-1845.38,0.00010958,2]
[334337834,1722993044995,-2260.75,0.00010958,2]
[334337835,1722993045006,-2260.75,0.00010958,2]
[334337836,1722993045016,-2260.75,0.00010958,2]
[334337837,1722993045025,-576.51,0.00010958,2]
[334337838,1722993045035,-500.0,0.00010958,2]
[334337839,1722993045044,-274.63859553,0.00010958,2]
[334337840,1722993045057,-529.76140447,0.00010958,2]
[334337841,1722993045066,-244.277856,0.00010958,2]
[334337842,1722993045076,-500.25270111,0.00010958,2]
[334337844,1722993045085,-500.0,0.00010958,2]
[334337846,1722993045095,-1307.72,0.00010958,2]
[334337848,1722993045104,-500.0,0.00010958,2]
[334337850,1722993045114,-21410.36,0.00010958,2]
[334337852,1722993045123,-500.0,0.00010958,2]
[334337853,1722993045132,-500.0,0.00010958,2]
[334337855,1722993045142,-500.0,0.00010958,2]
[334337857,1722993045152,-151.0,0.00010958,2]
[334337859,1722993045161,-5947.6,0.00010958,2]
[334337862,1722993045171,-500.0,0.00010958,2]
[334337864,1722993045181,-4146.21,0.00010958,2]
[334337866,1722993045191,-1482.88,0.00010958,2]
[334337868,1722993045201,-500.0,0.00010958,2]
[334337869,1722993045210,-190.331697,0.00010958,2]
[334337871,1722993045219,-190.331697,0.00010958,2]
[334337873,1722993045229,-6075.0,0.00010958,2]
[334337875,1722993045238,-190.331697,0.00010958,2]
[334337877,1722993045247,-6075.0,0.00010958,2]
[334337879,1722993045260,-107879.46,0.00010958,2]
[334337881,1722993045270,-6075.0,0.00010958,2]
[334337883,1722993045280,-190.331697,0.00010958,2]
[334337885,1722993045290,-500.0,0.00010958,2]
[334337887,1722993045300,-107879.46,0.00010958,2]
[334337889,1722993045309,-107879.46,0.00010958,2]
[334337891,1722993045319,-500.0,0.00010958,2]
[334337893,1722993045328,-190.331697,0.00010958,2]
[334337895,1722993045337,-3556.74,0.00010958,2]
[334337897,1722993045351,-500.0,0.00010958,2]
[334337899,1722993045360,-190.331697,0.00010958,2]
[334337901,1722993045370,-190.331697,0.00010958,2]
[334337903,1722993045379,-589.32,0.00010958,2]
[334337905,1722993045390,-190.331697,0.00010958,2]
[334337907,1722993045399,-850.33,0.00010958,2]
[334337909,1722993045409,-2400.29,0.00010958,2]
[334337911,1722993045418,-500.0,0.00010958,2]
[334337912,1722993045431,-15025.09,0.00010958,2]
[334337914,1722993045440,-10252.21,0.00010958,2]
[334337916,1722993045451,-10252.21,0.00010958,2]
[334337918,1722993045460,-3062.3,0.00010958,2]
[334337920,1722993045470,-500.0,0.00010958,2]
[334337922,1722993045479,-10252.21,0.00010958,2]
[334337924,1722993045489,-7061.29,0.00010958,2]
[334337926,1722993045499,-7061.29,0.00010958,2]
[334337928,1722993045510,-7061.29,0.00010958,2]
[334337930,1722993045520,-500.0,0.00010958,2]
[334337932,1722993045529,-8948.62,0.00010958,2]
[334337934,1722993045539,-500.0,0.00010958,2]
[334337936,1722993045549,-500.0,0.00010958,2]
[334337938,1722993045558,-861.32,0.00010958,2]
[334337939,1722993045568,-10641.33,0.00010958,2]
[334337941,1722993045578,-861.32,0.00010958,2]
[334337943,1722993045587,-6961.32,0.00010958,2]
[334337945,1722993045597,-861.32,0.00010958,2]
[334337947,1722993045607,-4085.34,0.00010958,2]
[334337948,1722993045616,-861.32,0.00010958,2]
[334337949,1722993045626,-861.32,0.00010958,2]
[334337950,1722993045636,-4085.34,0.00010958,2]
[334337951,1722993045646,-861.32,0.00010958,2]
[334337952,1722993045655,-4085.34,0.00010958,2]
[334337953,1722993045665,-803.38,0.00010958,2]
[334337954,1722993045674,-7491.73,0.00010958,2]
[334337955,1722993045684,-500.0,0.00010958,2]
[334337956,1722993045693,-500.0,0.00010958,2]
[334337958,1722993045703,-1948.88,0.00010958,2]
[334337959,1722993045712,-310.73249771,0.00010958,2]
[334337960,1722993045722,-2738.71,0.00010958,2]
[334337961,1722993045732,-1148.6,0.00010958,2]
[334337962,1722993045741,-1148.6,0.00010958,2]
[334337963,1722993045751,-1148.6,0.00010958,2]
[334337964,1722993045765,-500.0,0.00010958,2]
[334337965,1722993045775,-20285.55,0.00010958,2]
[334337966,1722993045784,-1148.6,0.00010958,2]
[334337967,1722993045794,-1148.6,0.00010958,2]
[334337968,1722993045804,-1148.6,0.00010958,2]
[334337969,1722993045813,-865.21,0.00010958,2]
[334337970,1722993045822,-519.64,0.00010958,2]
[334337971,1722993045831,-388.0520572,0.00010958,2]
[334337972,1722993045841,-500.0,0.00010958,2]
[334337973,1722993045851,-9959.46,0.00010958,2]
[334337974,1722993045860,-1398.65,0.00010958,2]
[334337976,1722993045870,-500.0,0.00010958,2]
[334337977,1722993045880,-677.43,0.00010958,2]
[334337978,1722993045891,-7265.58,0.00010958,2]
[334337979,1722993045900,-500.0,0.00010958,2]
[334337980,1722993045910,-190.403056,0.00010958,2]
[334337981,1722993045920,-500.61377812,0.00010958,2]
[334337982,1722993045930,-500.0,0.00010958,2]
[334337983,1722993045939,-2349.47,0.00010958,2]
[334337984,1722993045949,-1439.56,0.00010958,2]
[334337985,1722993045961,-500.70768376,0.00010958,2]
[334337986,1722993045971,-545.67,0.00010958,2]
[334337987,1722993045980,-2513.64,0.00010958,2]
[334337988,1722993045989,-2513.64,0.00010958,2]
[334337989,1722993045999,-2513.64,0.00010958,2]
[334337990,1722993046011,-29691.24,0.00010958,2]
[334337991,1722993046021,-500.0,0.00010958,2]
[334337992,1722993046030,-500.0,0.00010958,2]
[334337993,1722993046039,-1159.32,0.00010958,2]
[334337994,1722993046049,-1159.32,0.00010958,2]
[334337995,1722993046059,-1159.32,0.00010958,2]
[334337996,1722993046069,-151.0,0.00010958,2]
[334337997,1722993046079,-1159.32,0.00010958,2]
[334337998,1722993046089,-151.0,0.00010958,2]
[334337999,1722993046099,-1159.32,0.00010958,2]
[334338000,1722993046109,-500.0,0.00010958,2]
[334338001,1722993046118,-151.0,0.00010958,2]
[334338002,1722993046128,-1159.32,0.00010958,2]
[334338003,1722993046137,-151.0,0.00010958,2]
[334338005,1722993046146,-151.0,0.00010958,2]
[334338007,1722993046155,-151.0,0.00010958,2]
[334338008,1722993046165,-151.0,0.00010958,2]
[334338009,1722993046174,-500.0,0.00010958,2]
[334338010,1722993046183,-151.0,0.00010958,2]
[334338011,1722993046193,-500.0,0.00010958,2]
[334338012,1722993046202,-3415.33,0.00010958,2]
[334338013,1722993046212,-271.03252,0.00010958,2]
[334338014,1722993046222,-3415.33,0.00010958,2]
[334338015,1722993046231,-500.0,0.00010958,2]
[334338016,1722993046240,-500.0,0.00010958,2]
[334338017,1722993046250,-3415.33,0.00010958,2]
[334338018,1722993046264,-3415.33,0.00010958,2]
[334338019,1722993046274,-3415.33,0.00010958,2]
[334338020,1722993046283,-3415.33,0.00010958,2]
[334338021,1722993046293,-22579.21,0.00010958,2]
[334338022,1722993046302,-22579.21,0.00010958,2]
[334338023,1722993046312,-8294.89,0.00010958,2]
[334338024,1722993046321,-8288.95422904,0.00010958,2]
[334338025,1722993046354,-4467.48268509,0.00010958,2]
[334338026,1722993046367,-321.55951885,0.00010958,2]
[334338027,1722993047088,-542.00088822,0.00010958,2]
[334338028,1722993047099,-455.37695136,0.00010958,2]
[334338029,1722993049414,-3836.07597995,0.00010873,2]
[334338030,1722993049424,-2914.69657882,0.00010958,2]
[334338031,1722993049463,-4466.48701934,0.00010958,2]
[334338032,1722993049475,-1122.65212928,0.00010958,2]
[334338033,1722993049485,-3882.96,0.00010958,2]
[334338034,1722993049495,-3882.96,0.00010958,2]
[334338035,1722993049505,-3882.96,0.00010958,2]
[334338036,1722993049518,-3882.96,0.00010958,2]
[334338037,1722993049529,-3882.96,0.00010958,2]
[334338038,1722993049539,-1768.12048362,0.00010958,2]
[334338039,1722993049550,-1162.18224635,0.00010958,2]
[334338040,1722993049675,-952.65727003,0.00010958,2]
[334338041,1722993049687,-1954.52444406,0.00010958,2]
[334338042,1722993049699,-510.000005,0.00010958,2]
[334338044,1722993054580,151.08071,0.00024657,34]
[334338045,1722993057172,151.08071,0.00024657,34]
[334338047,1722993062105,151.08071,0.00024657,35]
[334338049,1722993063359,151.08071,0.00024657,35]
[334338067,1722993082727,151.08071,0.00024657,36]
[334338069,1722993086133,151.08071,0.00024657,36]
[334338076,1722993094987,151.08071,0.00024657,37]
[334338087,1722993202572,500.0,0.00024932,120]
[334338088,1722993348508,500.0,0.00024657,30]
[334338089,1722993350321,422.28,0.00021589,30]
[334338090,1722993413146,721.41,8.219e-05,2]
[334338093,1722993491382,250.0,8.219e-05,2]
[334338094,1722993505174,181995.33094734,8.219e-05,2]
[334338095,1722993513862,299.13159919,8.219e-05,2]
[334338096,1722993515186,1326.55931318,8.219e-05,2]
[334338097,1722993518980,215.65287238,8.219e-05,2]
[334338098,1722993519055,358.04977788,8.219e-05,2]
[334338099,1722993520650,227.65723628,8.219e-05,2]
[334338100,1722993525017,199.08071,0.00024657,37]
[334338101,1722993528595,644.02870406,8.219e-05,2]
[334338102,1722993624920,227.65723628,8.219e-05,2]
[334338103,1722993643564,158770.81654256,0.00024657,30]
[334338104,1722993690938,3000.0,0.00024658,30]
[334338109,1722993821453,387.09,0.00021589,30]
[334338110,1722993920125,495.73488057,9e-05,2]
[334338111,1722993955899,748.11907247,6.94e-05,2]
[334338112,1722993978612,748.33,8.219e-05,2]
[334338113,1722993990909,155.11563258,8.412e-05,2]
[334338114,1722994009374,227.65723628,6.94e-05,2]
[334338115,1722994016980,3547.34922,9.527e-05,2]
[334338118,1722994039362,227.65723628,6.94e-05,2]
[334338123,1722994098022,159.16029851,6.94e-05,2]
[334338124,1722994107474,3072.66607217,6.94e-05,2]
[334338125,1722994111717,2567.12650341,6.94e-05,2]
[334338126,1722994116182,948.14446095,8.412e-05,2]
[334338127,1722994121282,200.96988889,9.479e-05,2]
[334338136,1722994153454,-1680.59,9.62e-05,2]
[334338137,1722994153484,-1126.0,9.624e-05,2]
[334338138,1722994153514,-160.0,9.636e-05,2]
[334338139,1722994153541,-200.0,9.636e-05,2]
[334338140,1722994153571,-155.4,9.654e-05,2]
[334338141,1722994153598,-923.18,9.683e-05,2]
[334338142,1722994153625,-660.88,9.684e-05,2]
[334338143,1722994153651,-36.77673294,9.685e-05,2]
[334338144,1722994155711,227.65723628,6.94e-05,2]
[334338181,1722994208638,424.6842,9.524e-05,2]
[334338182,1722994221809,58159.984109,0.00024657,30]
[334338183,1722994224003,155.10132533,8.412e-05,2]
[334338184,1722994224885,291.07366134,8.412e-05,2]
[334338217,1722994232366,-641.02,9.678e-05,2]
[334338219,1722994232378,-659.5817235,9.678e-05,2]
[334338221,1722994232387,-213.22326706,9.685e-05,2]
[334338222,1722994232396,-461.59,9.695e-05,2]
[334338223,1722994232406,-170.53,9.698e-05,2]
[334338224,1722994232416,-840.0,9.724e-05,2]
[334338225,1722994232426,-337.84,9.746e-05,2]
[334338226,1722994232435,-171.52,9.751e-05,2]
[334338227,1722994232445,-150.0,9.838e-05,2]
[334338228,1722994232454,-1550.0,0.0001,2]
[334338229,1722994232464,-155.08094277,0.0001,2]
[334338230,1722994232474,-3433.48976762,0.00010063,2]
[334338231,1722994232485,-1563.98023238,0.00010063,2]
[334338232,1722994232495,-150.0,0.00010178,2]
[334338233,1722994232504,-300.0,0.00010178,2]
[334338234,1722994232513,-2919.41097364,0.00010351,2]
[334338235,1722994232524,-4413.7345626,0.00010351,2]
[334338236,1722994232535,-2666.85446376,0.00010351,2]
[334338237,1722994232544,-156.365248,0.00010414,2]
[334338238,1722994232553,-2127.13442681,0.00010414,2]
[334338239,1722994232568,-4252.37643937,0.00010414,2]
[334338241,1722994232578,-1050.00000188,0.00010414,2]
[334338243,1722994232589,-404.0,0.00010414,2]
[334338245,1722994232635,-3197.89402048,0.00010414,2]
[334338246,1722994232646,-4285.08511146,0.00010414,2]
[334338247,1722994232656,-748.33,0.00010457,2]
[334338248,1722994232665,-150.0,0.00010479,2]
[334338249,1722994232674,-5201.54252006,0.0001048,2]
[334338250,1722994232686,-510.35161515,0.0001048,2]
[334338252,1722994232697,-300.0,0.0001048,2]
[334338255,1722994232708,-997.00916121,0.0001048,2]
[334338257,1722994232720,-2356.99035085,0.0001048,2]
[334338282,1722994236533,426.93654465,8.412e-05,2]
[334338284,1722994238822,234.08071,0.00024657,32]
[334338285,1722994239029,-380.0,0.00010379,2]
[334338286,1722994239040,-7443.91396341,0.00010379,2]